bitfinex-derivatives/quotes_ETHF0:USTF0_20251009
["timestamp","ask_amount","ask_price","bid_price","bid_amount"]
[1760049394599,0.227,4371.2,4371.1,1.16338]
[1760049394999,3.25326364,4371.2,4371.1,1.16338]
[1760049395399,3.60158047,4371.2,4371.1,1.1660767]
[1760049395600,3.81128047,4371.2,4371.1,0.9501767]
[1760049399297,3.81128047,4371.2,4371.1,1.1647767]
[1760049404000,3.02878047,4371.2,4371.1,1.1647767]
[1760049404299,8.79798047,4371.2,4370.3,0.3363]
[1760049404502,0.7692,4370.4,4370.3,0.97606]
[1760049404801,3.74638919,4370.4,4370.3,1.19066]
[1760049405401,3.74638919,4370.4,4370.3,1.19273001]
[1760049418120,3.20318919,4370.4,4370.3,1.19273001]
[1760049420420,3.20318919,4370.4,4370.3,41.99273001]
[1760049421218,3.54958919,4370.4,4370.3,41.99273001]
[1760049421715,3.20318919,4370.4,4370.3,41.99273001]
[1760049422321,2.97718919,4370.4,4370.3,41.99273001]
[1760049422714,0.229,4370.5,4370.4,1.18595]
[1760049423124,3.16036229,4370.5,4370.4,1.18595]
[1760049423418,3.38356229,4370.5,4370.4,1.18595]
[1760049423624,3.72996229,4370.5,4370.4,1.18595]
[1760049424024,3.50096229,4370.5,4370.4,1.18595]
[1760049424321,3.15456229,4370.5,4370.4,1.18595]
[1760049428122,3.47146229,4370.5,4370.4,1.18595]
[1760049431719,2.93136229,4370.5,4370.4,1.18595]
[1760049432021,0.229,4370.6,4370.5,0.53974]
[1760049432225,0.229,4370.6,4370.5,1.32304]
[1760049432423,3.13604643,4370.6,4370.5,1.32304]
[1760049432923,3.13604643,4370.6,4370.5,1.55204]
[1760049434215,2.90704643,4370.6,4370.5,1.55204]
[1760049434520,0.52362061,4370.6,4370.5,1.55204]
[1760049435024,0.229,4370.8,4370.7,1.19492]
[1760049435221,0.96241695,4370.8,4370.7,1.19492]
[1760049435422,3.94296229,4370.8,4370.7,1.19492]
[1760049435829,3.71396229,4370.8,4370.7,1.19492]
[1760049436126,4.49116229,4370.8,4370.7,1.19492]
[1760049440627,4.26216229,4370.8,4370.7,1.19492]
[1760049440924,6.83e-06,4371.2,4371.1,1.19488]
[1760049441227,6.83e-06,4371.2,4371.1,1.42388]
[1760049441423,6.83e-06,4371.2,4371.1,6.42388]
[1760049441622,6.83e-06,4371.2,4371.1,47.22388]
[1760049443832,0.758,4372.5,4372.4,0.63756]
[1760049444032,0.758,4372.5,4372.4,0.97576]
[1760049444234,3.67553672,4372.5,4372.4,0.97576]
[1760049444937,3.67807761,4372.5,4372.4,0.97576]
[1760049445332,3.67807761,4372.5,4372.4,1.19476]
[1760049450839,2.92007761,4372.5,4372.4,1.19476]
[1760049451033,3.67807761,4372.5,4372.4,1.19476]
[1760049452034,2.18985986,4372.5,4372.4,6.42376]
[1760049452241,8.9e-07,4372.5,4372.4,6.42376]
[1760049452544,8.9e-07,4372.5,4372.4,47.22376]
[1760049462345,8.9e-07,4372.5,4372.4,42.22376]
[1760049471144,0.543,4373.9,4373.8,0.85593]
[1760049471345,0.74563865,4373.9,4373.8,1.42743]
[1760049471546,2.9628376,4373.9,4373.8,1.42743]
[1760049471742,2.9628376,4373.9,4373.8,42.22743]
[1760049471944,0.3177,4374.2,4374.1,0.8559]
[1760049472144,0.54489933,4374.2,4374.1,1.20083346]
[1760049472450,1.28736248,4374.2,4374.1,1.20083346]
[1760049474246,4.32251646,4374.2,4374.1,1.20083346]
[1760049477746,1.23477596,4375.1,4375.0,0.41122]
[1760049477951,0.0876,4375.1,4375.0,1.32602]
[1760049478342,0.0876,4375.1,4375.0,42.12602]
[1760049478751,0.08968784,4375.1,4375.0,42.12602]
[1760049478952,0.00208784,4375.1,4375.0,42.12602]
[1760049483350,1.59692089,4375.1,4375.0,42.12602]
[1760049483547,0.1752,4376.4,4376.3,0.4111]
[1760049483753,0.1752,4376.7,4376.6,0.97657]
[1760049484052,1.23477596,4377.1,4377.0,0.41103]
[1760049484254,0.17815832,4377.1,4377.0,1.10423]
[1760049484955,0.17815832,4377.1,4377.0,1.32583]
[1760049486358,0.00295832,4377.1,4377.0,1.32583]
[1760049486856,8.32e-06,4377.1,4377.0,1.32583]
[1760049487059,2.92831235,4377.1,4377.0,42.12583]
[1760049487452,1.98459235,4377.1,4377.0,42.12583]
[1760049488356,1.98721169,4377.1,4377.0,42.12583]
[1760049492857,1.51415169,4377.1,4377.0,42.12583]
[1760049493058,0.94670169,4377.1,4377.0,42.12583]
[1760049493255,0.29723169,4377.1,4377.0,42.12583]
[1760049493456,1.69e-06,4377.1,4377.0,42.12583]
[1760049496661,0.207,4378.3,4377.8,1.16895]
[1760049496863,0.0544,4378.9,4377.8,1.39695]
[1760049497060,0.0544,4378.9,4378.0,2.05468]
[1760049497364,0.68810256,4378.8,4378.7,0.95067]
[1760049497567,0.17690715,4378.8,4378.7,0.95239166]
[1760049497962,0.23130715,4378.8,4378.7,0.41259166]
[1760049498162,0.23130715,4378.8,4378.7,0.74059166]
[1760049501276,5.23130715,4378.8,4378.7,0.41259166]
[1760049501577,5.74279498,4378.8,4378.7,0.41259166]
[1760049501776,5.23130715,4378.8,4378.7,0.41259166]
[1760049502477,5.74290144,4378.8,4378.7,0.74059166]
[1760049504979,0.68850144,4378.8,4378.7,0.95239166]
[1760049506174,0.74290144,4378.8,4378.7,0.95239166]
[1760049506380,0.97090144,4378.8,4378.7,0.95239166]
[1760049507080,0.91650144,4378.8,4378.7,0.95239166]
[1760049507777,0.97090144,4378.8,4378.7,0.95239166]
[1760049507977,0.97090144,4378.8,4378.7,0.74059166]
[1760049509482,0.97090144,4378.8,4378.7,0.41259166]
[1760049510374,0.97090144,4378.8,4378.7,0.74059166]
[1760049512771,0.97090144,4378.8,4378.7,0.41259166]
[1760049513076,0.97090144,4378.8,4378.7,0.74059166]
[1760049513580,1.69408311,4378.8,4378.7,0.74059166]
[1760049513780,2.2056774,4378.8,4378.7,0.74059166]
[1760049514082,0.91650144,4378.8,4378.7,1.17059166]
[1760049514687,0.74230144,4378.8,4378.7,1.17059166]
[1760049515280,0.51430144,4378.8,4378.7,6.17059166]
[1760049515677,0.00270715,4378.8,4378.7,6.17059166]
[1760049515874,0.51430144,4378.8,4378.7,46.97059166]
[1760049516078,0.00270715,4378.8,4378.7,46.97059166]
[1760049516584,0.51160144,4378.8,4378.7,46.97649166]
[1760049516888,7.15e-06,4378.8,4378.7,46.64259166]
[1760049517385,1.23477596,4379.2,4379.0,0.5644]
[1760049517582,1.23477596,4379.2,4379.1,0.7617]
[1760049517783,0.0866,4379.3,4379.2,1.17252]
[1760049517975,1.23477596,4379.5,4379.4,0.4108]
[1760049518179,0.0866,4379.5,4379.4,0.8386]
[1760049518485,0.08856999,4379.5,4379.4,1.1725]
[1760049518787,0.00196999,4379.5,4379.4,1.1725]
[1760049521574,0.08856999,4379.5,4379.4,1.1725]
[1760049525089,0.22926999,4379.5,4379.4,0.4108]
[1760049526891,0.22926999,4379.5,4379.4,0.7281]
[1760049527393,0.17516999,4379.5,4379.4,0.9473]
[1760049529098,3.09371165,4379.5,4379.4,0.9473]
[1760049529289,3.60661134,4379.5,4379.4,0.9473]
[1760049530291,3.66121134,4379.5,4379.4,0.9473]
[1760049530496,3.66121134,4379.5,4379.4,0.7281]
[1760049530993,3.66121134,4379.5,4379.4,0.4108]
[1760049532198,3.14831165,4379.5,4379.4,0.7281]
[1760049532497,3.66101708,4379.5,4379.4,0.7281]
[1760049538900,3.43321708,4379.5,4379.4,1.1566]
[1760049539100,3.52051708,4379.5,4379.4,1.1566]
[1760049539496,3.52051708,4379.5,4379.4,41.9566]
[1760049540402,3.43321708,4379.5,4379.4,41.9566]
[1760049540594,2.97379708,4379.5,4379.4,41.9566]
[1760049540794,2.49318708,4379.5,4379.4,41.9566]
[1760049540991,1.25866708,4379.5,4379.4,41.9566]
[1760049541197,0.68482708,4379.5,4379.4,41.9566]
[1760049541393,0.04803708,4379.5,4379.4,42.1846]
[1760049541589,6.77e-06,4379.5,4379.4,42.1846]
[1760049542294,6.77e-06,4380.0,4379.9,1.15656]
[1760049543097,0.17460677,4380.0,4379.9,1.15656]
[1760049543398,0.0873,4379.5,4379.4,0.3173]
[1760049543602,0.2292,4379.5,4379.4,0.4108]
[1760049543901,3.47665704,4379.5,4379.4,0.4108]
[1760049544699,3.47665704,4379.5,4379.4,0.7281]
[1760049544899,3.42205704,4379.5,4379.4,0.9473]
[1760049545798,3.47665704,4379.5,4379.4,0.9473]
[1760049547208,3.42205704,4379.5,4379.4,0.9473]
[1760049548008,3.42205704,4379.5,4379.4,1.1633]
[1760049548909,3.33465704,4379.5,4379.4,1.1633]
[1760049549910,3.10665704,4379.5,4379.4,1.1633]
[1760049550312,1.93615704,4379.5,4379.4,1.1633]
[1760049550718,1.93615704,4379.5,4379.4,41.9633]
[1760049551119,1.44788704,4379.5,4379.4,47.1913]
[1760049551421,0.94153704,4379.5,4379.4,47.1913]
[1760049551920,0.44638704,4379.5,4379.4,47.1913]
[1760049552218,7.04e-06,4379.5,4379.4,47.1913]
[1760049557716,7.04e-06,4379.5,4379.4,41.9633]
[1760049557915,0.22850704,4379.5,4379.4,0.4108]
[1760049558120,0.73979297,4379.5,4379.4,0.4108]
[1760049559114,0.73979297,4379.5,4379.4,0.9628]
[1760049559115,0.68569297,4379.5,4379.4,0.9628]
[1760049559923,0.73979297,4379.5,4379.4,0.9628]
[1760049560627,0.68569297,4379.5,4379.4,0.9628]
[1760049561125,0.68569297,4379.5,4379.4,1.1788]
[1760049561126,0.51129297,4379.5,4379.4,1.1788]
[1760049561432,0.08907147,4380.0,4379.9,1.17876]
[1760049561728,0.08907147,4380.0,4379.9,41.97876]
[1760049562226,1.23477596,4380.9,4380.2,0.223]
[1760049562426,1.23477596,4380.9,4380.8,0.73967]
[1760049563025,1.23477596,4381.0,4380.9,0.329]
[1760049563326,1.2366088,4381.0,4380.9,0.329]
[1760049563528,0.00183284,4381.0,4380.9,0.329]
[1760049563730,0.00183284,4381.0,4380.9,0.552]
[1760049564230,0.00183284,4381.0,4380.9,0.768]
[1760049564729,2.92965716,4381.0,4380.9,0.768]
[1760049565229,2.92965716,4381.0,4380.9,0.552]
[1760049565830,2.92965716,4381.0,4380.8,0.41067]
[1760049566130,2.92965716,4381.0,4380.5,0.4107]
[1760049566325,2.92965716,4381.0,4380.6,0.41069]
[1760049566531,2.92965716,4381.0,4380.7,0.41068]
[1760049568131,2.92965716,4381.0,4380.8,0.41067]
[1760049568333,0.229,4380.9,4380.8,0.41067]
[1760049568927,3.14827807,4380.9,4380.8,0.73967]
[1760049569127,3.14827807,4380.9,4380.8,0.329]
[1760049569427,3.14827807,4380.9,4380.7,0.41068]
[1760049570227,3.14827807,4380.9,4380.5,0.41069]
[1760049570932,3.14827807,4380.9,4380.6,0.41069]
[1760049571733,3.14827807,4380.9,4380.7,0.41068]
[1760049573031,3.14827807,4380.9,4380.5,0.41069]
[1760049573333,0.51268398,4380.8,4380.4,0.41071]
[1760049573534,0.51268398,4380.7,4380.4,0.41071]
[1760049573729,0.51268398,4380.6,4380.4,0.41071]
[1760049573934,0.74168398,4380.5,4380.4,0.41071]
[1760049574132,3.7600792,4380.5,4380.4,0.41071]
[1760049574836,0.74168398,4380.5,4380.4,0.41071]
[1760049575031,0.74173505,4380.5,4380.4,0.41071]
[1760049575230,3.72159117,4380.5,4380.4,0.41071]
[1760049577233,3.72159117,4380.5,4380.1,0.313]
[1760049577539,0.51273505,4380.4,4380.1,0.41074]
[1760049577837,0.51273505,4380.4,4380.1,0.41073]
[1760049578036,3.01346731,4380.3,4380.1,0.41073]
[1760049578335,0.74173505,4380.2,4380.1,0.41073]
[1760049578539,0.74173505,4380.2,4380.1,0.72373]
[1760049578839,3.75857257,4380.2,4380.1,0.72373]
[1760049580941,3.75857257,4380.2,4380.0,0.41075]
[1760049581142,0.51273505,4380.1,4379.8,0.313]
[1760049581640,0.51273505,4380.1,4380.0,0.41075]
[1760049582034,3.50790076,4380.1,4380.0,0.41075]
[1760049582236,3.50790076,4380.1,4380.0,0.72375]
[1760049582938,2.99516571,4380.1,4380.0,0.72375]
[1760049585944,2.99516571,4380.1,4380.0,0.41075]
[1760049591546,2.99516571,4380.1,4379.6,40.8]
[1760049591740,0.229,4380.0,4379.9,0.41076]
[1760049592249,3.20459063,4380.0,4379.9,0.41076]
[1760049594547,3.20459063,4380.0,4379.6,41.1282]
[1760049594852,3.20459063,4380.0,4379.7,0.41078]
[1760049595347,3.20459063,4380.0,4379.4,0.001]
[1760049596048,0.41077,4379.8,4379.4,0.001]
[1760049596242,0.63978,4379.7,4379.4,0.001]
[1760049596448,0.41079,4379.6,4379.4,0.001]
[1760049596648,0.229,4379.5,4379.4,0.001]
[1760049596849,0.6398,4379.5,4379.4,0.001]
[1760049597052,3.65528858,4379.5,4379.4,0.001]
[1760049597944,8.24448858,4379.5,4378.7,0.00172166]
[1760049598145,3.24448858,4379.5,4378.7,0.00172166]
[1760049598345,0.41085,4378.9,4378.7,0.00172166]
[1760049598546,0.229,4378.8,4378.7,0.00172166]
[1760049598746,3.20864921,4378.8,4378.7,0.00172166]
[1760049600446,2.97964921,4378.8,4378.7,0.55842166]
[1760049600747,3.20864921,4378.8,4378.7,0.77702166]
[1760049601549,2.97964921,4378.8,4378.7,0.77702166]
[1760049601742,2.97964921,4378.8,4378.7,5.77702166]
[1760049601947,0.229,4379.0,4378.9,0.7753]
[1760049602253,0.229,4379.1,4379.0,0.9018]
[1760049602549,0.229,4379.1,4379.0,1.31264]
[1760049602750,3.26394816,4379.1,4379.0,1.31264]
[1760049602951,3.26394816,4379.1,4378.7,0.00172166]
[1760049602952,3.26394816,4379.1,4378.7,0.32992166]
[1760049603150,3.26394816,4379.1,4378.7,0.41259166]
[1760049603353,3.26394816,4379.1,4378.7,0.74079166]
[1760049603551,3.26394816,4379.1,4378.8,0.3282]
[1760049603950,3.26394816,4379.1,4378.8,0.41086]
[1760049604149,3.26394816,4379.1,4378.9,0.3282]
[1760049606853,3.67477816,4379.1,4378.9,0.3282]
[1760049607356,3.67477816,4379.1,4378.7,0.41259166]
[1760049607557,3.67477816,4379.1,4378.8,0.3334]
[1760049608052,3.26394816,4379.1,4378.8,0.3334]
[1760049608251,3.26394816,4379.1,4378.7,0.00172166]
[1760049608453,0.41086,4378.8,4378.7,0.00172166]
[1760049608648,0.63986,4378.8,4378.7,0.00172166]
[1760049608845,0.229,4378.8,4378.7,0.00172166]
[1760049609755,2.91036386,4378.8,4378.7,0.33512166]
[1760049609950,2.91036386,4378.8,4378.7,0.56262166]
[1760049610151,3.13936386,4378.8,4378.7,0.56262166]
[1760049610455,0.229,4378.8,4378.7,0.56262166]
[1760049611052,3.15305684,4378.8,4378.7,0.56262166]
[1760049611556,2.92405684,4378.8,4378.7,0.77392166]
[1760049611756,3.15305684,4378.8,4378.7,0.33512166]
[1760049611952,0.229,4378.8,4378.7,0.33512166]
[1760049612356,3.1722363,4378.8,4378.7,0.33512166]
[1760049614757,3.1722363,4378.8,4378.7,0.56262166]
[1760049615358,3.1722363,4378.8,4378.7,0.77392166]
[1760049615552,3.1722363,4378.8,4378.7,1.18479166]
[1760049616960,3.1722363,4378.8,4378.7,6.18479166]
[1760049617560,2.9432363,4378.8,4378.7,6.18479166]
[1760049617960,0.229,4379.0,4378.9,0.41085]
[1760049618161,0.229,4379.0,4378.9,1.18305]
[1760049618461,3.13983767,4379.0,4378.9,1.18305]
[1760049619260,2.91083767,4379.0,4378.9,6.18305]
[1760049619659,0.229,4379.5,4379.4,0.6383]
[1760049619857,0.229,4379.5,4379.4,1.183]
[1760049620161,3.22014794,4379.5,4379.4,1.183]
[1760049620351,2.99114794,4379.5,4379.4,1.183]
[1760049620754,0.229,4379.6,4379.4,1.183]
[1760049620956,0.229,4379.6,4379.5,0.905]
[1760049621254,0.00183284,4381.0,4380.0,0.5609]
[1760049621461,0.00183284,4381.0,4380.7,0.74407]
[1760049621462,0.229,4380.9,4380.7,0.74407]
[1760049622261,3.26099854,4380.9,4380.7,0.74407]
[1760049623062,3.26099854,4380.9,4380.7,0.41067]
[1760049624864,3.26099854,4380.9,4380.2,1.02683]
[1760049625065,3.26099854,4380.9,4380.8,0.41067]
[1760049625664,3.26099854,4380.9,4380.7,0.41068]
[1760049626266,3.26099854,4380.9,4380.6,0.41069]
[1760049626458,3.26099854,4380.9,4380.7,0.41068]
[1760049627066,3.26099854,4380.9,4380.2,1.35342]
[1760049627564,3.26099854,4380.9,4380.7,0.41068]
[1760049628461,0.41067,4380.8,4380.4,0.41071]
[1760049628767,0.41069,4380.6,4380.1,0.41074]
[1760049628959,0.228,4380.5,4380.1,0.41074]
[1760049629361,0.51221802,4380.4,4380.2,0.3266]
[1760049629665,0.74021802,4380.3,4380.1,0.41074]
[1760049629864,0.74021802,4380.3,4380.1,0.73734]
[1760049629865,0.51221802,4380.2,4380.1,0.73734]
[1760049630262,0.51221802,4380.2,4380.1,0.3266]
[1760049630469,3.44985571,4380.2,4380.1,0.3266]
[1760049631071,3.44985571,4380.2,4380.1,0.73734]
[1760049632066,3.44985571,4380.2,4380.1,0.3266]
[1760049632665,3.44985571,4380.2,4379.6,40.8]
[1760049632666,0.41075,4380.0,4379.7,0.3266]
[1760049632969,0.74021802,4379.9,4379.6,0.41078]
[1760049633166,0.51221802,4379.8,4379.6,0.41078]
[1760049633367,0.74021802,4379.7,4379.6,0.41078]
[1760049633771,3.65122709,4379.7,4379.6,0.41078]
[1760049634266,0.74021802,4379.7,4379.6,0.73738]
[1760049634462,3.68553334,4379.7,4379.6,0.73738]
[1760049634867,3.68553334,4379.7,4379.6,0.41078]
[1760049635064,3.68553334,4379.7,4379.2,0.3266]
[1760049635365,0.51221802,4379.6,4379.5,0.41079]
[1760049635564,3.17331532,4379.7,4379.5,0.3266]
[1760049635768,2.93693678,4379.6,4379.2,0.3305]
[1760049636067,0.228,4379.5,4379.4,0.7413]
[1760049636263,0.228,4379.5,4379.1,0.3305]
[1760049636472,0.41082,4379.3,4378.7,0.00172166]
[1760049636768,0.73794243,4379.2,4378.9,0.41084]
[1760049636963,0.50994243,4379.1,4379.0,0.41084]
[1760049637366,0.50994243,4379.1,4379.0,0.74134]
[1760049637564,0.50994243,4379.1,4378.7,0.00172166]
[1760049637762,0.228,4379.0,4378.9,0.74135]
[1760049639169,3.22769432,4379.0,4378.9,0.74135]
[1760049639359,3.73774776,4379.0,4378.9,0.74135]
[1760049641066,3.73774776,4379.0,4378.9,0.41085]
[1760049646278,3.73774776,4379.0,4378.7,0.00172166]
[1760049646478,0.51005344,4378.9,4378.7,0.00172166]
[1760049646680,0.228,4378.8,4378.7,0.41259166]
[1760049646881,0.73805344,4378.8,4378.7,0.41259166]
[1760049647081,3.71187364,4378.8,4378.7,0.41259166]
[1760049647379,3.71196511,4378.8,4378.7,0.41259166]
[1760049648678,3.71196511,4378.8,4378.7,0.75849166]
[1760049650781,3.71196511,4378.8,4378.7,0.41259166]
[1760049652785,3.71196511,4378.8,4378.7,0.75849166]
[1760049654686,3.71196511,4378.8,4378.7,0.41259166]
[1760049656192,3.71196511,4378.8,4378.7,0.75849166]
[1760049660492,3.71196511,4378.8,4378.7,1.20739166]
[1760049661897,3.71196511,4378.8,4378.7,0.75849166]
[1760049662801,3.71196511,4378.8,4378.7,0.98769166]
[1760049663193,3.71196511,4378.8,4378.7,1.20739166]
[1760049663797,3.48396511,4378.8,4378.7,1.20739166]
[1760049664103,3.71196511,4378.8,4378.7,1.20739166]
[1760049673403,3.71196511,4378.8,4378.7,1.20839166]
[1760049673996,2.9738202,4378.8,4378.7,6.20839166]
[1760049674502,0.228,4379.3,4379.2,0.86162]
[1760049674797,0.73897683,4379.3,4379.2,1.18232]
[1760049675199,3.70682746,4379.3,4379.2,1.18232]
[1760049676397,0.41083,4379.1,4379.0,0.1261]
[1760049676603,0.41086,4378.8,4378.7,0.73429166]
[1760049676797,0.63886,4378.8,4378.7,0.73429166]
[1760049676999,0.73897683,4378.8,4378.7,0.73429166]
[1760049677198,3.71611496,4378.8,4378.7,0.73429166]
[1760049677400,3.71611496,4378.8,4378.7,0.95419166]
[1760049677701,3.71611496,4378.8,4378.7,0.73429166]
[1760049680099,3.71611496,4378.8,4378.7,0.00272166]
[1760049681005,3.71611496,4378.8,4378.7,0.73429166]
[1760049681800,3.71611496,4378.8,4378.7,0.95419166]
[1760049682706,3.71611496,4378.8,4378.7,0.73429166]
[1760049687904,3.71611496,4378.8,4378.7,0.95419166]
[1760049689207,3.71611496,4378.8,4378.7,0.73429166]
[1760049689811,3.48811496,4378.8,4378.7,0.73429166]
[1760049690105,3.71611496,4378.8,4378.7,0.73429166]
[1760049692708,3.71611496,4378.8,4378.7,0.95419166]
[1760049694104,3.71611496,4378.8,4378.7,1.18509166]
[1760049698508,3.71611496,4378.8,4378.7,0.41359166]
[1760049698711,3.20513813,4378.8,4378.7,0.41359166]
[1760049698916,3.71552597,4378.8,4378.7,0.74419166]
[1760049700917,4.12638597,4378.8,4378.7,0.00272166]
[1760049701516,4.12638597,4378.8,4378.7,0.41359166]
[1760049702009,4.12638597,4378.8,4378.7,0.00272166]
[1760049703419,4.12638597,4378.8,4378.7,0.41359166]
[1760049703614,3.71552597,4378.8,4378.7,0.41359166]
[1760049704415,3.71552597,4378.8,4378.7,0.74419166]
[1760049705918,4.12638597,4378.8,4378.7,0.41359166]
[1760049706316,4.12638597,4378.8,4378.7,0.00272166]
[1760049711421,4.12638597,4378.8,4378.7,0.41359166]
[1760049712523,4.12638597,4378.8,4378.7,0.00272166]
[1760049714923,4.12638597,4378.8,4378.7,0.41359166]
[1760049715728,4.12638597,4378.8,4378.7,0.00272166]
[1760049723231,3.71552597,4378.8,4378.7,0.41359166]
[1760049723926,3.48752597,4378.8,4378.7,0.73739166]
[1760049724125,3.48752597,4378.8,4378.7,6.19279166]
[1760049724330,3.71552597,4378.8,4378.7,6.19279166]
[1760049724526,3.48752597,4378.8,4378.7,6.19279166]
[1760049724726,2.46945813,4378.8,4378.7,6.19279166]
[1760049724922,1.37826813,4378.8,4378.7,6.19279166]
[1760049725122,0.34711813,4378.8,4378.7,47.22079166]
[1760049725625,8.13e-06,4378.8,4378.7,47.22079166]
[1760049728935,1.228987,4380.7,4380.5,0.4107]
[1760049729137,1.23081984,4381.0,4380.9,0.41066]
[1760049729330,0.73871959,4381.0,4380.9,0.73726]
[1760049729926,0.51071959,4381.0,4380.9,0.96026]
[1760049730137,0.73871959,4381.0,4380.9,0.96026]
[1760049731534,3.76461894,4381.0,4380.9,0.96026]
[1760049734832,3.76461894,4381.0,4380.9,1.18286]
[1760049735228,3.25573219,4381.0,4380.9,1.18286]
[1760049735736,3.02773219,4381.0,4380.9,1.18286]
[1760049736337,3.02773219,4381.0,4380.9,41.98286]
[1760049737138,0.47077939,4382.1,4380.9,46.5722]
[1760049737432,0.084,4383.1,4382.3,0.5496]
[1760049737643,0.084,4383.1,4382.6,0.3266]
[1760049737937,1.228987,4384.4,4382.8,1.18269]
[1760049738139,0.04197078,4382.9,4382.8,1.18543817]
[1760049740535,0.04197078,4382.9,4382.8,0.77494817]
[1760049742734,0.04197078,4382.9,4382.8,0.55234817]
[1760049743037,3.01836823,4382.9,4382.8,0.00274817]
[1760049744433,0.41056,4382.1,4381.6,0.3266]
[1760049744633,0.228,4382.0,4381.8,0.3266]
[1760049744841,0.228,4382.0,4381.8,0.96018]
[1760049745143,0.228,4382.0,4381.9,0.3266]
[1760049745337,3.20784451,4382.0,4381.9,0.55126172]
[1760049745737,0.228,4382.0,4381.9,0.55126172]
[1760049746139,3.22176611,4382.0,4381.9,0.55126172]
[1760049746638,2.99376611,4382.0,4381.9,0.55126172]
[1760049746840,2.99376611,4382.0,4381.9,0.77386172]
[1760049747241,0.228,4382.7,4382.6,0.7722]
[1760049747746,2.95350385,4382.7,4382.6,0.7722]
[1760049748445,2.95350385,4382.7,4382.6,41.5722]
[1760049748839,2.90420451,4382.8,4382.7,0.4105]
[1760049749043,2.90420451,4382.8,4382.7,1.1827]
[1760049749345,0.25197078,4382.9,4382.8,0.7722]
[1760049749944,3.25151648,4382.9,4382.8,0.7722]
[1760049753745,3.02351648,4382.9,4382.8,0.7722]
[1760049753947,3.25151648,4382.9,4382.8,0.7722]
[1760049754147,3.25151648,4382.9,4382.8,1.18269]
[1760049758147,3.76248195,4382.9,4382.8,1.18269]
[1760049761053,4.17296195,4382.9,4382.8,1.18269]
[1760049761545,4.17296195,4382.9,4382.8,0.96009]
[1760049762448,3.76248195,4382.9,4382.8,0.96009]
[1760049763157,3.76248195,4382.9,4382.8,1.19139]
[1760049765649,4.17296195,4382.9,4382.8,1.19139]
[1760049765850,3.76248195,4382.9,4382.8,1.19139]
[1760049766357,3.76248195,4382.9,4382.8,0.96009]
[1760049767053,3.76248195,4382.9,4382.8,1.18869]
[1760049769452,4.17296195,4382.9,4382.8,1.18869]
[1760049769752,3.76248195,4382.9,4382.8,1.18869]
[1760049770757,3.76248195,4382.9,4382.8,0.96009]
[1760049770959,4.17296195,4382.9,4382.8,0.3266]
[1760049771163,4.17296195,4382.9,4382.8,0.73709]
[1760049772052,0.4105,4382.7,4382.6,0.3311]
[1760049772253,1.456987,4382.7,4382.0,0.1315]
[1760049772458,0.51096547,4382.6,4382.0,0.76856]
[1760049772658,0.41054,4382.2,4382.1,0.3311]
[1760049772858,1.14950547,4382.2,4382.1,0.3311]
[1760049773255,4.14645456,4382.2,4382.1,0.3311]
[1760049774364,4.14645456,4382.2,4382.1,0.5576]
[1760049774563,3.73591456,4382.2,4382.1,0.5576]
[1760049777559,0.41055,4382.1,4382.0,0.4626]
[1760049777763,0.92151547,4382.1,4382.0,0.4626]
[1760049777963,0.92151547,4382.1,4382.0,0.6891]
[1760049778360,3.90250752,4382.1,4382.0,0.6891]
[1760049780065,3.90250752,4382.1,4382.0,0.4626]
[1760049785064,3.49195752,4382.1,4382.0,0.6891]
[1760049785370,3.71995752,4382.1,4382.0,1.32826]
[1760049788073,3.71995752,4382.1,4382.0,42.12826]
[1760049789266,0.41056,4382.0,4381.9,0.00166172]
[1760049789472,0.92152547,4382.0,4381.9,0.00166172]
[1760049790068,3.94446384,4382.0,4381.9,0.00166172]
[1760049795279,0.4106,4381.6,4381.5,0.445]
[1760049795481,0.6386,4381.6,4381.5,0.445]
[1760049795680,1.14956547,4381.6,4381.5,0.445]
[1760049795881,1.14956547,4381.6,4381.5,0.8637]
[1760049795882,0.73896547,4381.6,4381.5,0.8637]
[1760049796179,3.70139005,4381.6,4381.5,1.2761121]
[1760049804984,4.11199005,4381.6,4381.5,1.2761121]
[1760049805185,3.70139005,4381.6,4381.5,1.2761121]
[1760049806281,4.11199005,4381.6,4381.5,1.2761121]
[1760049807485,3.47339005,4381.6,4381.5,1.2761121]
[1760049808288,3.88399005,4381.6,4381.5,1.2761121]
[1760049812493,3.47339005,4381.6,4381.5,1.2761121]
[1760049819897,0.43445078,4382.9,4382.3,0.2314]
[1760049820103,0.05147078,4382.9,4382.8,0.7798]
[1760049820303,0.25197078,4382.9,4382.8,0.7798]
[1760049820803,3.27396136,4382.9,4382.8,0.7798]
[1760049821003,3.30146136,4382.9,4382.8,0.7798]
[1760049822806,3.04596136,4382.9,4382.8,0.7798]
[1760049824904,3.27396136,4382.9,4382.8,0.7798]
[1760049825601,3.30216136,4382.9,4382.8,0.7798]
[1760049826203,0.02397078,4382.9,4382.8,0.7798]
[1760049826505,0.05217078,4382.9,4382.8,0.7798]
[1760049826702,3.02677687,4382.9,4382.8,0.5619]
[1760049826910,3.02677687,4382.9,4382.5,0.4737]
[1760049826911,0.4845,4382.6,4382.5,0.4737]
[1760049827204,0.7125,4382.6,4382.5,0.3389]
[1760049827405,3.73717517,4382.6,4382.5,0.3389]
[1760049827705,3.73717517,4382.6,4382.5,0.4762]
[1760049830403,3.73717517,4382.6,4382.5,0.3389]
[1760049830614,0.46695,4382.2,4382.1,0.3389]
[1760049830905,0.0564,4381.7,4381.6,41.2106]
[1760049831099,0.0282,4381.7,4381.6,41.2106]
[1760049831301,0.0282,4381.7,4381.6,41.5495]
[1760049831500,2.95783562,4381.7,4381.6,41.5495]
[1760049835610,3.36842562,4381.7,4381.6,41.5495]
[1760049836202,2.95783562,4381.7,4381.6,41.5495]
[1760049841118,3.23163562,4381.7,4381.6,0.7495]
[1760049842018,3.75217939,4381.7,4381.6,0.7495]
[1760049842412,3.73457939,4381.7,4381.6,0.9782]
[1760049843923,3.21403562,4381.7,4381.6,0.9782]
[1760049844120,3.73459708,4381.7,4381.6,0.9782]
[1760049845023,3.73461842,4381.7,4381.6,0.9782]
[1760049845716,3.21403562,4381.7,4381.6,0.9782]
[1760049846120,3.15763562,4381.7,4381.6,1.1904]
[1760049846319,3.21283562,4381.7,4381.6,1.1904]
[1760049846719,2.92963562,4381.7,4381.6,1.1904]